[Event "*** SCC Grand Prix: Titled Tuesday Blitz"]
[Site "Chess.com"]
[Date "2020.08.11"]
[Round "9"]
[White "Artyom_ChessMate"]
[Black "1f3_2g41-0"]
[Result "1-0"]
[WhiteElo "2564"]
[BlackElo "2435"]
[TimeControl "180+1"]
[EndTime "11:45:47 PDT"]
[Termination "Artyom_ChessMate won by checkmate"]

1. e4 {[%clk 0:03:00.9]} 1... c5 {[%clk 0:03:00]} 2. Nc3 {[%clk 0:03:00.4]} 2...
Nc6 {[%clk 0:02:58.6]} 3. Bb5 {[%clk 0:02:59]} 3... a6 {[%clk 0:02:56.3]} 4.
Bxc6 {[%clk 0:02:57.9]} 4... dxc6 {[%clk 0:02:55.7]} 5. f4 {[%clk 0:02:58.8]}
5... g6 {[%clk 0:02:55.9]} 6. d3 {[%clk 0:02:59.7]} 6... Bg7 {[%clk 0:02:56]} 7.
Nf3 {[%clk 0:03:00.4]} 7... e6 {[%clk 0:02:53.1]} 8. O-O {[%clk 0:03:01.3]} 8...
Ne7 {[%clk 0:02:52.6]} 9. Qe1 {[%clk 0:03:02]} 9... O-O {[%clk 0:02:52.6]} 10.
Qh4 {[%clk 0:03:01.4]} 10... b5 {[%clk 0:02:48.1]} 11. Ng5 {[%clk 0:02:58.6]}
11... h6 {[%clk 0:02:45.9]} 12. Nf3 {[%clk 0:02:58.8]} 12... f5 {[%clk
0:02:17.8]} 13. Be3 {[%clk 0:02:51.2]} 13... c4 {[%clk 0:02:07.1]} 14. Bc5
{[%clk 0:02:44.2]} 14... Re8 {[%clk 0:02:02.1]} 15. dxc4 {[%clk 0:02:42.3]}
15... b4 {[%clk 0:01:58.3]} 16. Na4 {[%clk 0:02:35]} 16... fxe4 {[%clk
0:01:41.2]} 17. Ne5 {[%clk 0:01:58.6]} 17... Bxe5 {[%clk 0:01:26.1]} 18. fxe5
{[%clk 0:01:54.6]} 18... Nf5 {[%clk 0:01:25]} 19. Qxe4 {[%clk 0:01:41.9]} 19...
Bb7 {[%clk 0:01:21.6]} 20. Rad1 {[%clk 0:01:38.9]} 20... Qg5 {[%clk 0:01:18.9]}
21. Rd7 {[%clk 0:01:37.3]} 21... Bc8 {[%clk 0:01:15.8]} 22. Rc7 {[%clk
0:01:32.7]} 22... Qd8 {[%clk 0:01:06.9]} 23. Qxc6 {[%clk 0:01:27.9]} 23... Rb8
{[%clk 0:01:02]} 24. Nb6 {[%clk 0:01:03.3]} 24... Nd4 {[%clk 0:00:56.2]} 25. Qd6
{[%clk 0:00:30.1]} 25... Qxd6 {[%clk 0:00:40.1]} 26. exd6 {[%clk 0:00:30]} 26...
Rd8 {[%clk 0:00:38.8]} 27. Bxd4 {[%clk 0:00:16.4]} 27... Rxd6 {[%clk 0:00:38.8]}
28. Bc5 {[%clk 0:00:16.4]} 28... Rd8 {[%clk 0:00:37.3]} 29. Rff7 {[%clk
0:00:13.8]} 29... Bd7 {[%clk 0:00:27.2]} 30. Rcxd7 {[%clk 0:00:07.5]} 30... Rxd7
{[%clk 0:00:27.3]} 31. Nxd7 {[%clk 0:00:08.3]} 31... Rc8 {[%clk 0:00:27.3]} 32.
Rf8+ {[%clk 0:00:07.7]} 32... Rxf8 {[%clk 0:00:25.7]} 33. Nxf8 {[%clk
0:00:08.6]} 33... Kf7 {[%clk 0:00:25.8]} 34. Bxb4 {[%clk 0:00:09]} 34... e5
{[%clk 0:00:26.1]} 35. Nd7 {[%clk 0:00:08.9]} 35... Ke6 {[%clk 0:00:25.5]} 36.
Nxe5 {[%clk 0:00:08.8]} 36... Kxe5 {[%clk 0:00:25.8]} 37. Kf2 {[%clk 0:00:09.4]}
37... Kd4 {[%clk 0:00:26.1]} 38. b3 {[%clk 0:00:10.1]} 38... a5 {[%clk 0:00:25]}
39. Bxa5 {[%clk 0:00:10.2]} 39... Kc5 {[%clk 0:00:24.8]} 40. Bd2 {[%clk
0:00:11.1]} 40... g5 {[%clk 0:00:24.4]} 41. a4 {[%clk 0:00:12]} 41... Kd4 {[%clk
0:00:24.8]} 42. a5 {[%clk 0:00:12.9]} 42... Ke5 {[%clk 0:00:25.7]} 43. a6 {[%clk
0:00:13.1]} 43... Kd6 {[%clk 0:00:26.6]} 44. a7 {[%clk 0:00:13.7]} 44... Kc6
{[%clk 0:00:27.5]} 45. a8=Q+ {[%clk 0:00:14.6]} 45... Kd6 {[%clk 0:00:27.4]} 46.
Qa6+ {[%clk 0:00:14.4]} 46... Kd7 {[%clk 0:00:27.6]} 47. Qxh6 {[%clk 0:00:13]}
47... Ke7 {[%clk 0:00:28.5]} 48. Ke3 {[%clk 0:00:13.4]} 48... g4 {[%clk
0:00:28.4]} 49. Ke4 {[%clk 0:00:14]} 49... g3 {[%clk 0:00:29.1]} 50. Kf5 {[%clk
0:00:14.5]} 50... Kf7 {[%clk 0:00:29.8]} 51. Qh7+ {[%clk 0:00:14.7]} 51... Kf8
{[%clk 0:00:30.2]} 52. Kf6 {[%clk 0:00:14.9]} 52... gxh2 {[%clk 0:00:30.6]} 53.
Qf7# {[%clk 0:00:15.1]} 1-0

[Event "*** SCC Grand Prix: Titled Tuesday Blitz"]
[Site "Chess.com"]
[Date "2020.08.11"]
[Round "9"]
[White "frederiksvane"]
[Black "Gerodot71"]
[Result "1-0"]
[WhiteElo "2574"]
[BlackElo "2401"]
[TimeControl "180+1"]
[EndTime "11:45:47 PDT"]
[Termination "frederiksvane won by resignation"]

1. e4 {[%clk 0:03:00.8]} 1... e5 {[%clk 0:02:59.5]} 2. Nf3 {[%clk 0:03:00.8]}
2... Nc6 {[%clk 0:02:59.3]} 3. Bb5 {[%clk 0:03:01.5]} 3... a6 {[%clk 0:02:59.1]}
4. Ba4 {[%clk 0:03:02]} 4... Nf6 {[%clk 0:02:58.5]} 5. O-O {[%clk 0:03:02.5]}
5... Be7 {[%clk 0:02:58.8]} 6. d3 {[%clk 0:03:02.7]} 6... b5 {[%clk 0:02:58]} 7.
Bb3 {[%clk 0:03:03.3]} 7... O-O {[%clk 0:02:58.4]} 8. Nc3 {[%clk 0:03:03.6]}
8... d6 {[%clk 0:02:55.6]} 9. a3 {[%clk 0:03:03.8]} 9... Nb8 {[%clk 0:02:55.1]}
10. Ne2 {[%clk 0:03:00.2]} 10... Be6 {[%clk 0:02:50.9]} 11. Bxe6 {[%clk
0:02:57.6]} 11... fxe6 {[%clk 0:02:51.8]} 12. Ng3 {[%clk 0:02:58.1]} 12... Qe8
{[%clk 0:02:45.4]} 13. c3 {[%clk 0:02:55.7]} 13... Nbd7 {[%clk 0:02:41.2]} 14.
Be3 {[%clk 0:02:52.4]} 14... Ng4 {[%clk 0:02:33.9]} 15. Bd2 {[%clk 0:02:52.1]}
15... Nc5 {[%clk 0:02:19.8]} 16. h3 {[%clk 0:02:49]} 16... Nf6 {[%clk
0:02:17.6]} 17. Be3 {[%clk 0:02:49]} 17... Na4 {[%clk 0:02:14.9]} 18. Qc2 {[%clk
0:02:43.7]} 18... Nh5 {[%clk 0:02:14.7]} 19. b3 {[%clk 0:02:34.9]} 19... Nb6
{[%clk 0:02:12.2]} 20. Nxh5 {[%clk 0:02:12.8]} 20... Qxh5 {[%clk 0:02:10.9]} 21.
Qe2 {[%clk 0:02:09.2]} 21... Nd7 {[%clk 0:02:02.5]} 22. Nd4 {[%clk 0:02:05.6]}
22... Qf7 {[%clk 0:02:00.6]} 23. Nc6 {[%clk 0:02:04.6]} 23... Bf6 {[%clk
0:02:00.4]} 24. a4 {[%clk 0:02:04.3]} 24... Nb8 {[%clk 0:01:41.2]} 25. axb5
{[%clk 0:02:03.7]} 25... Nxc6 {[%clk 0:01:39.9]} 26. bxc6 {[%clk 0:02:04.2]}
26... Qe8 {[%clk 0:01:40.5]} 27. Qg4 {[%clk 0:02:03.4]} 27... Kh8 {[%clk
0:01:36.2]} 28. Rfc1 {[%clk 0:01:53.7]} 28... d5 {[%clk 0:01:34.2]} 29. Bc5
{[%clk 0:01:13.4]} 29... Rf7 {[%clk 0:01:31.8]} 30. c4 {[%clk 0:01:03.8]} 30...
Qxc6 {[%clk 0:01:27.8]} 31. Ra5 {[%clk 0:00:58.8]} 31... h6 {[%clk 0:01:14.7]}
32. cxd5 {[%clk 0:00:42.5]} 32... exd5 {[%clk 0:01:15.6]} 33. Be3 {[%clk
0:00:42.5]} 33... Qb7 {[%clk 0:01:06.5]} 34. Rxd5 {[%clk 0:00:42.5]} 34... Qxb3
{[%clk 0:01:04.7]} 35. Qe6 {[%clk 0:00:43.1]} 35... Re7 {[%clk 0:00:59.8]} 36.
Rd8+ {[%clk 0:00:42.7]} 36... Rxd8 {[%clk 0:00:57]} 37. Qxb3 {[%clk 0:00:43.6]}
37... Red7 {[%clk 0:00:57.9]} 38. Qa4 {[%clk 0:00:41]} 38... Rxd3 {[%clk
0:00:56.4]} 39. Qxa6 {[%clk 0:00:40]} 39... Rd1+ {[%clk 0:00:56.1]} 40. Rxd1
{[%clk 0:00:40.2]} 40... Rxd1+ {[%clk 0:00:57]} 41. Kh2 {[%clk 0:00:41.1]} 41...
Rd8 {[%clk 0:00:44.6]} 42. Qb7 {[%clk 0:00:40.3]} 42... c5 {[%clk 0:00:34.7]}
43. Bxc5 {[%clk 0:00:39.2]} 43... Re8 {[%clk 0:00:35.5]} 44. Be3 {[%clk
0:00:39.3]} 44... Kg8 {[%clk 0:00:34.6]} 45. Qc6 {[%clk 0:00:38.7]} 45... Re7
{[%clk 0:00:33.5]} 46. Bxh6 {[%clk 0:00:36.7]} 46... Kf7 {[%clk 0:00:33.6]} 47.
Be3 {[%clk 0:00:36.8]} 47... Re6 {[%clk 0:00:34.1]} 48. Qd5 {[%clk 0:00:37]}
48... Ke7 {[%clk 0:00:34.2]} 49. Bc5+ {[%clk 0:00:37.4]} 49... Kf7 {[%clk
0:00:34.8]} 50. Qd7+ {[%clk 0:00:38]} 50... Be7 {[%clk 0:00:33.8]} 51. Bxe7
{[%clk 0:00:38.5]} 51... Rxe7 {[%clk 0:00:34.7]} 52. Qf5+ {[%clk 0:00:39.4]}
52... Kg8 {[%clk 0:00:33.6]} 53. Kg3 {[%clk 0:00:40.3]} 53... g6 {[%clk
0:00:33.9]} 54. Qxg6+ {[%clk 0:00:39.7]} 54... Rg7 {[%clk 0:00:34.8]} 55. Qxg7+
{[%clk 0:00:39.5]} 55... Kxg7 {[%clk 0:00:35.7]} 56. f4 {[%clk 0:00:40]} 56...
Kg6 {[%clk 0:00:36.6]} 57. f5+ {[%clk 0:00:38.8]} 57... Kg5 {[%clk 0:00:37.5]}
58. h4+ {[%clk 0:00:37.8]} 58... Kh5 {[%clk 0:00:38]} 59. Kh3 {[%clk 0:00:37.7]}
59... Kh6 {[%clk 0:00:38.2]} 60. g4 {[%clk 0:00:38.6]} 60... Kg7 {[%clk
0:00:39.1]} 61. g5 {[%clk 0:00:39.5]} 61... Kf7 {[%clk 0:00:39.3]} 62. Kg4
{[%clk 0:00:40.4]} 62... Kg7 {[%clk 0:00:40.2]} 63. h5 {[%clk 0:00:41.3]} 63...
Kh7 {[%clk 0:00:41.1]} 64. h6 {[%clk 0:00:42.2]} 1-0

[Event "*** SCC Grand Prix: Titled Tuesday Blitz"]
[Site "Chess.com"]
[Date "2020.08.11"]
[Round "9"]
[White "Margarita2907"]
[Black "LaPorfia"]
[Result "0-1"]
[WhiteElo "2096"]
[BlackElo "2251"]
[TimeControl "180+1"]
[EndTime "11:45:47 PDT"]
[Termination "LaPorfia won by resignation"]

1. e4 {[%clk 0:03:00.9]} 1... d5 {[%clk 0:02:59.5]} 2. exd5 {[%clk 0:03:00.2]}
2... Nf6 {[%clk 0:02:59.7]} 3. Nf3 {[%clk 0:02:58.7]} 3... Bg4 {[%clk
0:02:58.5]} 4. Be2 {[%clk 0:02:56.3]} 4... Qxd5 {[%clk 0:02:57.7]} 5. d4 {[%clk
0:02:50.7]} 5... Nc6 {[%clk 0:02:56]} 6. Nc3 {[%clk 0:02:48.2]} 6... Qh5 {[%clk
0:02:55.3]} 7. O-O {[%clk 0:02:43.9]} 7... O-O-O {[%clk 0:02:54.8]} 8. Be3
{[%clk 0:02:37.6]} 8... e5 {[%clk 0:02:54.6]} 9. h3 {[%clk 0:02:24.4]} 9... exd4
{[%clk 0:02:33.5]} 10. Nxd4 {[%clk 0:02:01.2]} 10... Bxe2 {[%clk 0:02:31.1]} 11.
Ncxe2 {[%clk 0:01:56.1]} 11... Nxd4 {[%clk 0:02:26.9]} 12. Nxd4 {[%clk
0:01:55.3]} 12... Qe5 {[%clk 0:02:01.7]} 13. c3 {[%clk 0:01:45.5]} 13... Bd6
{[%clk 0:02:01]} 14. Nf3 {[%clk 0:01:41.5]} 14... Qh5 {[%clk 0:01:48.7]} 15. Qa4
{[%clk 0:01:38.7]} 15... a6 {[%clk 0:01:48.3]} 16. b4 {[%clk 0:01:33.7]} 16...
Rhe8 {[%clk 0:01:46.5]} 17. Qb3 {[%clk 0:01:27.1]} 17... Nd5 {[%clk 0:01:23.3]}
18. Bg5 {[%clk 0:01:14]} 18... f6 {[%clk 0:01:18.6]} 19. Bd2 {[%clk 0:01:12.2]}
19... Bf4 {[%clk 0:01:09.9]} 20. Bxf4 {[%clk 0:01:01.5]} 20... Nxf4 {[%clk
0:01:09.5]} 21. Nh2 {[%clk 0:00:36]} 21... Qg6 {[%clk 0:00:47.7]} 22. g3 {[%clk
0:00:25]} 22... Nxh3+ {[%clk 0:00:47.4]} 23. Kg2 {[%clk 0:00:24.7]} 23... Nf4+
{[%clk 0:00:46.7]} 24. Kh1 {[%clk 0:00:23.2]} 24... Nd3 {[%clk 0:00:30]} 25. b5
{[%clk 0:00:19.6]} 25... Qe4+ {[%clk 0:00:28.9]} 26. f3 {[%clk 0:00:19]} 26...
Qe6 {[%clk 0:00:25.7]} 27. bxa6 {[%clk 0:00:10.8]} 27... Qxa6 {[%clk 0:00:23.9]}
28. Rab1 {[%clk 0:00:07.3]} 28... Qc6 {[%clk 0:00:22.7]} 29. a4 {[%clk
0:00:06.2]} 29... Nc5 {[%clk 0:00:19.8]} 30. Qb4 {[%clk 0:00:05.1]} 30... b6
{[%clk 0:00:19.6]} 31. a5 {[%clk 0:00:04.4]} 31... Nd3 {[%clk 0:00:19.2]} 32.
Qb3 {[%clk 0:00:03.2]} 32... Qd5 {[%clk 0:00:18.3]} 33. Qc2 {[%clk 0:00:01.7]}
33... b5 {[%clk 0:00:17.8]} 34. Qa2 {[%clk 0:00:01.6]} 34... Qxa2 {[%clk
0:00:17]} 0-1

[Event "*** SCC Grand Prix: Titled Tuesday Blitz"]
[Site "Chess.com"]
[Date "2020.08.11"]
[Round "9"]
[White "vova-79"]
[Black "blitzking1729"]
[Result "0-1"]
[WhiteElo "2466"]
[BlackElo "2616"]
[TimeControl "180+1"]
[EndTime "11:45:50 PDT"]
[Termination "blitzking1729 won by resignation"]

1. d4 {[%clk 0:03:00.9]} 1... d6 {[%clk 0:02:55.7]} 2. c4 {[%clk 0:02:58.8]}
2... e5 {[%clk 0:02:55.4]} 3. Nc3 {[%clk 0:02:58.1]} 3... exd4 {[%clk
0:02:55.2]} 4. Qxd4 {[%clk 0:02:56.6]} 4... Nc6 {[%clk 0:02:56.1]} 5. Qd2 {[%clk
0:02:56.9]} 5... Nf6 {[%clk 0:02:55.2]} 6. e4 {[%clk 0:02:45.6]} 6... Be6 {[%clk
0:02:53.5]} 7. Bd3 {[%clk 0:02:41.8]} 7... Ne5 {[%clk 0:02:49.4]} 8. b3 {[%clk
0:02:41.3]} 8... c6 {[%clk 0:02:39.1]} 9. Nge2 {[%clk 0:02:20.5]} 9... d5 {[%clk
0:02:33]} 10. cxd5 {[%clk 0:02:18.7]} 10... cxd5 {[%clk 0:02:32.4]} 11. Bb5+
{[%clk 0:02:17.4]} 11... Bd7 {[%clk 0:02:11.6]} 12. Bxd7+ {[%clk 0:02:06.7]}
12... Qxd7 {[%clk 0:02:10.8]} 13. exd5 {[%clk 0:02:06.7]} 13... Bb4 {[%clk
0:01:59]} 14. O-O {[%clk 0:02:05]} 14... O-O {[%clk 0:01:57]} 15. Bb2 {[%clk
0:02:03.1]} 15... Rfe8 {[%clk 0:01:52.5]} 16. Qd4 {[%clk 0:02:00.1]} 16... Bd6
{[%clk 0:01:28.6]} 17. Ng3 {[%clk 0:01:57.3]} 17... Rad8 {[%clk 0:01:22.8]} 18.
Rad1 {[%clk 0:01:42.2]} 18... h5 {[%clk 0:01:19.5]} 19. Nce4 {[%clk 0:01:36.6]}
19... Nxe4 {[%clk 0:01:02]} 20. Nxe4 {[%clk 0:01:37.5]} 20... Qg4 {[%clk
0:01:00.4]} 21. f3 {[%clk 0:01:31.4]} 21... Nxf3+ {[%clk 0:00:55.1]} 22. Rxf3
{[%clk 0:01:30.9]} 22... Rxe4 {[%clk 0:00:54.2]} 23. Qd3 {[%clk 0:01:16.5]}
23... Rde8 {[%clk 0:00:51.5]} 24. h3 {[%clk 0:01:14.7]} 24... Qg6 {[%clk
0:00:37.3]} 25. Qc3 {[%clk 0:00:42.3]} 25... Be5 {[%clk 0:00:29.3]} 26. Qc2
{[%clk 0:00:22.2]} 26... Bxb2 {[%clk 0:00:26]} 27. Qxb2 {[%clk 0:00:15.7]} 27...
Re2 {[%clk 0:00:24.7]} 28. Rf2 {[%clk 0:00:12.8]} 28... Rxb2 {[%clk 0:00:20.4]}
29. Rxb2 {[%clk 0:00:13.7]} 29... h4 {[%clk 0:00:19.3]} 30. d6 {[%clk
0:00:12.9]} 30... Qg3 {[%clk 0:00:14.9]} 31. d7 {[%clk 0:00:09.4]} 31... Re1+
{[%clk 0:00:14.4]} 32. Rxe1 {[%clk 0:00:08.8]} 32... Qxe1+ {[%clk 0:00:13.8]}
33. Kh2 {[%clk 0:00:09.1]} 33... Qe5+ {[%clk 0:00:13.7]} 34. Kg1 {[%clk
0:00:08.8]} 34... Qd4+ {[%clk 0:00:13.3]} 35. Kh1 {[%clk 0:00:07.5]} 35... Qd1+
{[%clk 0:00:12.2]} 36. Kh2 {[%clk 0:00:07.3]} 36... Qxd7 {[%clk 0:00:13.1]} 0-1

[Event "*** SCC Grand Prix: Titled Tuesday Blitz"]
[Site "Chess.com"]
[Date "2020.08.11"]
[Round "9"]
[White "Quiet_Desperation"]
[Black "laboratorio25"]
[Result "1/2-1/2"]
[WhiteElo "2285"]
[BlackElo "2426"]
[TimeControl "180+1"]
[EndTime "11:45:50 PDT"]
[Termination "Game drawn by agreement"]

1. Nf3 {[%clk 0:03:00.9]} 1... d5 {[%clk 0:02:59.2]} 2. d4 {[%clk 0:02:58.3]}
2... Nf6 {[%clk 0:02:58.6]} 3. c4 {[%clk 0:02:57.9]} 3... dxc4 {[%clk
0:02:57.8]} 4. a4 {[%clk 0:02:56.1]} 4... Nc6 {[%clk 0:02:54.3]} 5. e3 {[%clk
0:02:55.2]} 5... Na5 {[%clk 0:02:46.7]} 6. Nbd2 {[%clk 0:02:37.9]} 6... Be6
{[%clk 0:02:43.9]} 7. Ne5 {[%clk 0:02:23.1]} 7... c5 {[%clk 0:02:28.2]} 8. Ndxc4
{[%clk 0:02:15.2]} 8... Nxc4 {[%clk 0:02:27.9]} 9. Bxc4 {[%clk 0:02:09.1]} 9...
Bxc4 {[%clk 0:02:27.3]} 10. Nxc4 {[%clk 0:02:07.6]} 10... Qd5 {[%clk 0:02:27.8]}
11. Qb3 {[%clk 0:01:58.2]} 11... Qxg2 {[%clk 0:02:23.7]} 12. Rf1 {[%clk
0:01:57.6]} 12... Qd5 {[%clk 0:02:13.1]} 13. dxc5 {[%clk 0:01:50.3]} 13... e6
{[%clk 0:02:12.5]} 14. Qb5+ {[%clk 0:01:38.1]} 14... Nd7 {[%clk 0:02:12.2]} 15.
Bd2 {[%clk 0:01:13.4]} 15... Bxc5 {[%clk 0:02:07.1]} 16. O-O-O {[%clk
0:01:11.2]} 16... a6 {[%clk 0:02:06.2]} 17. Qb3 {[%clk 0:01:08.6]} 17... Rc8
{[%clk 0:02:05.8]} 18. e4 {[%clk 0:00:51.7]} 18... Qxe4 {[%clk 0:02:01.3]} 19.
Bc3 {[%clk 0:00:47.1]} 19... Qxc4 {[%clk 0:01:49.1]} 20. Qxc4 {[%clk 0:00:46.2]}
20... Be3+ {[%clk 0:01:49]} 21. fxe3 {[%clk 0:00:47.1]} 21... Rxc4 {[%clk
0:01:48.3]} 22. Kb1 {[%clk 0:00:47.6]} 22... f6 {[%clk 0:01:47.3]} 23. Rd6
{[%clk 0:00:46.3]} 23... Ke7 {[%clk 0:01:42.2]} 24. Rfd1 {[%clk 0:00:45.6]}
24... Nb8 {[%clk 0:01:33.1]} 25. Rb6 {[%clk 0:00:40.4]} 25... Rc7 {[%clk
0:01:31.1]} 26. Bb4+ {[%clk 0:00:39.7]} 26... Kf7 {[%clk 0:01:30.8]} 27. Rdd6
{[%clk 0:00:35.8]} 27... Rhc8 {[%clk 0:01:22.6]} 28. Rxe6 {[%clk 0:00:32]} 28...
Nc6 {[%clk 0:01:18.5]} 29. Rd6 {[%clk 0:00:31.7]} 29... Nxb4 {[%clk 0:01:16.1]}
30. Rxb4 {[%clk 0:00:32.6]} 30... Ke7 {[%clk 0:01:15.3]} 31. Rdb6 {[%clk
0:00:30]} 31... Rb8 {[%clk 0:01:04.4]} 32. Rxa6 {[%clk 0:00:29.9]} 32... bxa6
{[%clk 0:01:03.1]} 33. Rxb8 {[%clk 0:00:29.6]} 33... Ke6 {[%clk 0:00:59.3]} 34.
Rb6+ {[%clk 0:00:28.6]} 34... Kd5 {[%clk 0:00:59.5]} 35. Rxa6 {[%clk 0:00:28.8]}
35... Re7 {[%clk 0:00:59.3]} 36. Rb6 {[%clk 0:00:26.1]} 36... Rxe3 {[%clk
0:00:55.1]} 37. a5 {[%clk 0:00:26.2]} 37... Re7 {[%clk 0:00:51.6]} 38. b4 {[%clk
0:00:24.1]} 38... f5 {[%clk 0:00:47.2]} 39. a6 {[%clk 0:00:18.1]} 39... Ra7
{[%clk 0:00:38]} 40. b5 {[%clk 0:00:14.7]} 40... f4 {[%clk 0:00:35.2]} 41. Rb7
{[%clk 0:00:14.8]} 41... Ra8 {[%clk 0:00:34.5]} 42. Rxg7 {[%clk 0:00:10.7]}
42... Kc5 {[%clk 0:00:33.1]} 43. Rf7 {[%clk 0:00:08]} 43... Kxb5 {[%clk
0:00:32.7]} 44. Rxf4 {[%clk 0:00:08.2]} 44... Rxa6 {[%clk 0:00:30.3]} 45. Rh4
{[%clk 0:00:08.1]} 45... h6 {[%clk 0:00:29.8]} 46. Kb2 {[%clk 0:00:06.5]} 46...
Kc5 {[%clk 0:00:22.2]} 1/2-1/2

[Event "*** SCC Grand Prix: Titled Tuesday Blitz"]
[Site "Chess.com"]
[Date "2020.08.11"]
[Round "9"]
[White "DrMamaliga"]
[Black "redbaron8888"]
[Result "1-0"]
[WhiteElo "2215"]
[BlackElo "2393"]
[TimeControl "180+1"]
[EndTime "11:45:52 PDT"]
[Termination "DrMamaliga won by checkmate"]

1. c4 {[%clk 0:03:00.9]} 1... e5 {[%clk 0:02:59.6]} 2. Nc3 {[%clk 0:03:00.5]}
2... Bb4 {[%clk 0:02:59.5]} 3. Qb3 {[%clk 0:02:59.4]} 3... a5 {[%clk 0:02:59]}
4. Nd5 {[%clk 0:02:58.5]} 4... Bc5 {[%clk 0:02:59.1]} 5. Qg3 {[%clk 0:02:56.9]}
5... Kf8 {[%clk 0:02:41.5]} 6. Qxe5 {[%clk 0:02:55.7]} 6... d6 {[%clk
0:02:41.7]} 7. Qc3 {[%clk 0:02:53.5]} 7... c6 {[%clk 0:02:36.6]} 8. Ne3 {[%clk
0:02:52.7]} 8... Nf6 {[%clk 0:02:34.4]} 9. g3 {[%clk 0:02:44.8]} 9... h5 {[%clk
0:02:33.6]} 10. Nf3 {[%clk 0:02:44.4]} 10... Na6 {[%clk 0:02:30.8]} 11. h4
{[%clk 0:02:40.2]} 11... Ng4 {[%clk 0:02:27.7]} 12. a3 {[%clk 0:02:34.2]} 12...
a4 {[%clk 0:02:23.5]} 13. d4 {[%clk 0:02:29.6]} 13... Bb6 {[%clk 0:02:20.6]} 14.
Bd2 {[%clk 0:02:25.6]} 14... Nxe3 {[%clk 0:02:17.1]} 15. Qxe3 {[%clk 0:02:24]}
15... Be6 {[%clk 0:02:16.4]} 16. Qd3 {[%clk 0:02:20.3]} 16... Qf6 {[%clk
0:02:13.7]} 17. Bc3 {[%clk 0:02:12.2]} 17... d5 {[%clk 0:02:13.7]} 18. c5 {[%clk
0:02:03.7]} 18... Bc7 {[%clk 0:02:13.1]} 19. Bg2 {[%clk 0:02:02.9]} 19... g6
{[%clk 0:02:11.7]} 20. Bd2 {[%clk 0:02:00.8]} 20... Bf5 {[%clk 0:02:08.3]} 21.
Qc3 {[%clk 0:01:43.3]} 21... Re8 {[%clk 0:02:07.7]} 22. Bg5 {[%clk 0:01:37.7]}
22... Qe6 {[%clk 0:02:03.3]} 23. e3 {[%clk 0:01:37.7]} 23... f6 {[%clk
0:02:01.7]} 24. Bf4 {[%clk 0:01:37.1]} 24... Bxf4 {[%clk 0:02:01.5]} 25. gxf4
{[%clk 0:01:38]} 25... Be4 {[%clk 0:01:59.4]} 26. O-O-O {[%clk 0:01:36.7]} 26...
Nc7 {[%clk 0:01:58.3]} 27. Ne1 {[%clk 0:01:25.9]} 27... Rh7 {[%clk 0:01:50.4]}
28. Bxe4 {[%clk 0:01:24.1]} 28... dxe4 {[%clk 0:01:47.7]} 29. Nc2 {[%clk
0:01:15.3]} 29... Nd5 {[%clk 0:01:38.6]} 30. Qa5 {[%clk 0:01:10.3]} 30... b6
{[%clk 0:01:24.6]} 31. cxb6 {[%clk 0:01:05.7]} 31... Rb7 {[%clk 0:01:24.7]} 32.
Nb4 {[%clk 0:00:59.6]} 32... Nxb6 {[%clk 0:01:20.1]} 33. Qc5+ {[%clk 0:00:56.5]}
33... Kg7 {[%clk 0:01:17.2]} 34. Kb1 {[%clk 0:00:55.3]} 34... Nd5 {[%clk
0:01:13.4]} 35. Nxd5 {[%clk 0:00:45.4]} 35... cxd5 {[%clk 0:01:12.5]} 36. Rc1
{[%clk 0:00:45.1]} 36... Reb8 {[%clk 0:01:12.1]} 37. Rc2 {[%clk 0:00:44.6]}
37... Kh6 {[%clk 0:01:09.1]} 38. Ka1 {[%clk 0:00:33.7]} 38... Rb5 {[%clk
0:01:07.5]} 39. Qc3 {[%clk 0:00:28.9]} 39... Rb3 {[%clk 0:01:07.2]} 40. Qa5
{[%clk 0:00:28.2]} 40... Qd7 {[%clk 0:01:01.4]} 41. Rhc1 {[%clk 0:00:24.9]}
41... Qb7 {[%clk 0:00:59.1]} 42. Qd2 {[%clk 0:00:17.7]} 42... Qb6 {[%clk
0:00:55]} 43. Qe2 {[%clk 0:00:10.1]} 43... Rd3 {[%clk 0:00:53.1]} 44. Rc3 {[%clk
0:00:08.5]} 44... Rxc3 {[%clk 0:00:43]} 45. Rxc3 {[%clk 0:00:09.4]} 45... f5
{[%clk 0:00:42.2]} 46. Qc2 {[%clk 0:00:09.4]} 46... Qb5 {[%clk 0:00:41.4]} 47.
Rc5 {[%clk 0:00:07.2]} 47... Qf1+ {[%clk 0:00:41]} 48. Ka2 {[%clk 0:00:07.6]}
48... Qh3 {[%clk 0:00:41.5]} 49. Rxd5 {[%clk 0:00:07.2]} 49... Qxh4 {[%clk
0:00:41.7]} 50. Qc7 {[%clk 0:00:07.3]} 50... Rg8 {[%clk 0:00:36.3]} 51. Rd7
{[%clk 0:00:07.2]} 51... Qf6 {[%clk 0:00:32.4]} 52. Rh7# {[%clk 0:00:06.7]} 1-0

[Event "*** SCC Grand Prix: Titled Tuesday Blitz"]
[Site "Chess.com"]
[Date "2020.08.11"]
[Round "9"]
[White "Sultanasharminshirin"]
[Black "sertalzin"]
[Result "0-1"]
[WhiteElo "2012"]
[BlackElo "1858"]
[TimeControl "180+1"]
[EndTime "11:45:55 PDT"]
[Termination "sertalzin won on time"]

1. d4 {[%clk 0:03:00.9]} 1... d5 {[%clk 0:02:59.3]} 2. c4 {[%clk 0:03:00.9]}
2... c6 {[%clk 0:02:57.1]} 3. Nc3 {[%clk 0:02:59.9]} 3... Nf6 {[%clk 0:02:56.4]}
4. Nf3 {[%clk 0:03:00.1]} 4... e6 {[%clk 0:02:55.7]} 5. Bg5 {[%clk 0:02:58.9]}
5... h6 {[%clk 0:02:55.1]} 6. Bh4 {[%clk 0:02:57.3]} 6... dxc4 {[%clk
0:02:54.2]} 7. e4 {[%clk 0:02:52.9]} 7... g5 {[%clk 0:02:53.5]} 8. Bg3 {[%clk
0:02:52.7]} 8... b5 {[%clk 0:02:51.6]} 9. e5 {[%clk 0:02:44.4]} 9... Nd5 {[%clk
0:02:50.2]} 10. Be2 {[%clk 0:02:13.3]} 10... Bb4 {[%clk 0:02:46.9]} 11. Qc2
{[%clk 0:01:56.5]} 11... Bb7 {[%clk 0:02:30.4]} 12. O-O {[%clk 0:01:41.4]} 12...
O-O {[%clk 0:02:21.7]} 13. Ne4 {[%clk 0:01:37.8]} 13... Be7 {[%clk 0:02:17.1]}
14. a4 {[%clk 0:01:31.4]} 14... Nd7 {[%clk 0:01:57.9]} 15. Rad1 {[%clk
0:01:16.8]} 15... a6 {[%clk 0:01:45.7]} 16. h3 {[%clk 0:01:09.9]} 16... c5
{[%clk 0:01:42.8]} 17. b3 {[%clk 0:00:47.9]} 17... cxb3 {[%clk 0:01:26.6]} 18.
Qxb3 {[%clk 0:00:45.4]} 18... b4 {[%clk 0:00:52.5]} 19. Bc4 {[%clk 0:00:26.7]}
19... N5b6 {[%clk 0:00:45.4]} 20. Nxc5 {[%clk 0:00:22]} 20... Bxc5 {[%clk
0:00:23.2]} 21. dxc5 {[%clk 0:00:20.3]} 21... Nxc4 {[%clk 0:00:21.9]} 22. Qxc4
{[%clk 0:00:19.8]} 22... Bxf3 {[%clk 0:00:21.4]} 23. gxf3 {[%clk 0:00:17.8]}
23... Qc7 {[%clk 0:00:19.3]} 24. Qg4 {[%clk 0:00:11.7]} 24... Nxe5 {[%clk
0:00:16.1]} 25. Qh5 {[%clk 0:00:11.6]} 25... f6 {[%clk 0:00:12.7]} 26. Rd6
{[%clk 0:00:05.2]} 26... Qg7 {[%clk 0:00:07.1]} 27. c6 {[%clk 0:00:03.7]} 27...
Nf7 {[%clk 0:00:04.2]} 28. Rd7 {[%clk 0:00:02.5]} 28... e5 {[%clk 0:00:03.2]}
29. Rfd1 {[%clk 0:00:01]} 29... Rac8 {[%clk 0:00:02.8]} 0-1